Cogmind - Beta 13 X1 @@@ ROGUE MODE // 2023.10.17 @ 15:52:43 // Winter2022/Polymind Player: f3-rnm Result: Destroyed by L-31 Rogue with Katana Performance ------------- Evolutions (1) 500 Regions Visited (2) 400 Robots Destroyed (33) 165 Value Destroyed (804) 804 Prototype IDs (0) 0 Alien Tech Used (0) 0 Bonus (1425) 1425 TOTAL SCORE: 2624 Bonus ------- Polymind Skill 1170 Pacifist 200 High Alert Combat Kills 55 Cogmind --------- Core Integrity 0/400 Matter 0/0 Energy 215/215 System Corruption 0% Temperature Cool (0) Movement Walking (120) Location -9/Materials Parts ------- > --- POWER (1) -------- Improved Ion Engine > --- PROPULSION (2) --- Improved Aluminum Leg Improved Aluminum Leg > --- UTILITY (2) ------ Melee Analysis Suite Core Shielding > --- WEAPON (1) ------- Katana > --- INVENTORY (1) ---- (None) Peak State ------------ > --- POWER ------------ Improved Ion Engine > --- PROPULSION ------- Improved Aluminum Leg Improved Aluminum Leg > --- UTILITY ---------- Melee Analysis Suite Core Shielding > --- WEAPON ----------- Katana > --- INVENTORY -------- (None) [Rating: 13] Favorites ----------- Power Reinforced Ion Engine Engine Reinforced Ion Engine Propulsion Light Treads Treads Light Treads Leg Improved Aluminum Leg Wheel Wheel Utility Heat Sink Device Heat Sink Processor Melee Analysis Suite Protection Light Armor Plating Weapon Hammer Energy Gun Beam Rifle Ballistic Gun Heavy Assault Rifle Special Weapon Mining Laser Impact Weapon Hammer Slashing Weapon Katana Build | -11 -10 -9 ------- Run | Jun Mat Mat Slots Evolved . | . . . Power . | . . . Propulsion . | . . . Utility . | . . . Weapon . | . . . Parts Attached . | . . . Power . | . . . Engine . | . . . Core . | . . . Reactor . | . . . Propulsion . | . . . Treads . | . . . Leg . | . . . Wheel . | . . . Hover . | . . . Flight . | . . . Utility . | . . . Device . | . . . Storage . | . . . Processor . | . . . Hackware . | . . . Protection . | . . . Artifact . | . . . Weapon . | . . . Energy Gun . | . . . Energy Cannon . | . . . Ballistic Gun . | . . . Ballistic Cannon . | . . . Launcher . | . . . Special Weapon . | . . . Impact Weapon . | . . . Slashing Weapon . | . . . Piercing Weapon . | . . . Special Melee Weapon . | . . . Unidentified Prototypes . | . . . Parts Lost 7 | . . 7 Power . | . . . Propulsion 2 | . . 2 Utility 2 | . . 2 Weapon 3 | . . 3 Highest Loss Streak 2 | . . 2 To Critical Strikes . | . . . Average Slot Usage (%) 90 | . 62 92 Engine 16 | . 10 17 Treads 32 | . . 33 Wheel 1 | . 20 . Device 10 | . 20 9 Protection 9 | . . 9 Energy Gun 3 | . . 3 Ballistic Gun 4 | . . 4 Impact Weapon 11 | . . 12 Naked Turns 39 | . 38 1 Heaviest Build 18 | . 6 18 Greatest Support 40 | 3 20 40 Greatest Overweight (x) . | . . . Average Overweight (x) . | . . . Largest Inventory Capacity 1 | . . 1 Average Capacity . | . . . Most Carried . | . . . Average Carried . | . . . Final Capacity 1 | . . 1 Final Carried . | . . . Class Distribution -------------------- 59% | Brawler 34% | Sentry 4% | Tunneler Dominant Class ---------------- Tunneler | -10/Materials Brawler | -9/Materials Resources | -11 -10 -9 ----------- Run | Jun Mat Mat Matter Collected 129 | . . 129 Remotely . | . . . Salvage Created 959 | . . 959 Parts 58 | . . 58 Haulers Intercepted 2 | . . 2 Recyclers Shooed 3 | . . 3 Parts Field Recycled . | . . . Retrieved Matter . | . . . Parts Self-Destructed . | . . . Prevented . | . . . Kills | -11 -10 -9 ------- Run | Jun Mat Mat Combat Hostiles Destroyed 25 | . . 25 Melee 8 | . . 8 Guns 12 | . . 12 AOE 1 | . . 1 Classes Destroyed 10 | . . 10 Worker 1 | . . 1 Builder 2 | . . 2 Hauler 2 | . . 2 Recycler 1 | . . 1 Mechanic 1 | . . 1 Watcher 1 | . . 1 Swarmer 7 | . . 7 Grunt 13 | . . 13 Brawler 1 | . . 1 Sentry 4 | . . 4 Best Kill Streak 4 | . . 4 Combat Bots Only 4 | . . 4 Max Kills in Single Turn 1 | . . 1 Gunslinging . | . . . Exploded 1 | . . 1 Melee 1 | . . 1 Uniques/NPCs Destroyed . | . . . Combat | -11 -10 -9 -------- Run | Jun Mat Mat Damage Taken 1623 | . . 1623 Core 412 | . . 412 Absorbed by Shields . | . . . Redirected to Shielding 4 | . . 4 Ignored by Resistances 66 | . . 66 Core Remaining (%) 100 | 100 100 . Volleys Fired 57 | . . 57 Largest 2 | . . 2 Hottest 79 | . . 79 Shots Fired 101 | . . 101 Gun 101 | . . 101 Cannon . | . . . Launcher . | . . . Special . | . . . Kinetic 57 | . . 57 Thermal 44 | . . 44 Explosive . | . . . Electromagnetic . | . . . Robot Hit Streak 14 | . . 14 Robot Miss Streak 3 | . . 3 Penetration Max . | . . . Secondary Targets . | . . . Shots Hit Robots 103 | . . 103 Core Hits 31 | . . 31 Critical Kills 2 | . . 2 Critical Parts Destroyed 4 | . . 4 Critical Strikes 6 | . . 6 Destroy 1 | . . 1 Smash 5 | . . 5 Melee Attacks 49 | . . 49 Impact 48 | . . 48 Slashing 1 | . . 1 Piercing . | . . . Sneak Attacks 8 | . . 8 Combat Hostiles 2 | . . 2 Follow-up Attacks . | . . . Damage Inflicted 2128 | . . 2128 Guns 938 | . . 938 Cannons . | . . . Explosions . | . . . Melee 1184 | . . 1184 Ramming 6 | . . 6 Kinetic 449 | . . 449 Thermal 489 | . . 489 Explosive . | . . . Electromagnetic . | . . . Impact 1118 | . . 1118 Slashing 66 | . . 66 Piercing . | . . . Highest Corruption . | . . . Average Corruption . | . . . Corruption Purged . | . . . Corruption Blocked . | . . . Overload Shots . | . . . Overflow Damage 173 | . . 173 Projectiles . | . . . Explosions . | . . . Melee 173 | . . 173 Knockbacks 4 | . . 4 Impact 4 | . . 4 Kinetic . | . . . Secondary . | . . . Self-Inflicted Damage . | . . . Shots . | . . . Rammed 2 | . . 2 Targets Rammed 2 | . . 2 Kicked . | . . . Crushed . | . . . Highest Temperature 77 | . . 77 Average Temperature 28 | . . 28 Received Heat Transfer 633 | . . 633 Siege Activations . | . . . Robots Corrupted . | . . . Combat Hostiles . | . . . Parts Fried 13 | . . 13 Impact Corruptions 9 | . . 9 Robots Melted . | . . . Combat Hostiles . | . . . Parts Melted . | . . . Heat Transferred 1221 | . . 1221 Parts Sabotaged . | . . . Parts Stolen . | . . . Parts Stripped . | . . . Power Chain Reactions . | . . . Missiles Intercepted . | . . . Alert | -11 -10 -9 ------- Run | Jun Mat Mat Peak Influence 487 | . . 487 Initial . | . . . Average 243 | . . 257 Maximum Alert Level 2 | . . 2 Low Security (%) 41 | 100 100 37 Level 1 31 | . . 32 Level 2 27 | . . 29 Level 3 . | . . . Level 4 . | . . . Level 5 . | . . . High Security . | . . . Max Security . | . . . Squads Dispatched 7 | . . 7 Investigation 4 | . . 4 Extermination . | . . . Reinforcement 2 | . . 2 Assault 1 | . . 1 Garrison . | . . . Intercept . | . . . Searches Triggered . | . . . Construction Impeded . | . . . Haulers Reinforced . | . . . Active Scanning Responses . | . . . Cargo Convoy Interrupts . | . . . Stealth | -11 -10 -9 --------- Run | Jun Mat Mat Distress Signals 2 | . . 2 Communications Jammed . | . . . Distress Signals . | . . . Times Spotted 50 | . . 50 Peak Tracking Total 5 | . . 5 Tactical Retreats 1 | . . 1 Traps | -11 -10 -9 ------- Run | Jun Mat Mat Traps Triggered 1 | . . 1 Indirectly . | . . . Trap Hack Attempts . | . . . Triggered . | . . . Disarmed 1 | . . 1 Reprogrammed . | . . . Reused . | . . . Traps Extracted . | . . . Installed . | . . . Triggered . | . . . Machines | -11 -10 -9 ---------- Run | Jun Mat Mat Machines Disabled . | . . . Max in Single Turn . | . . . Machines Repaired . | . . . Machines Sabotaged . | . . . Overloaded Fab Kills . | . . . Hacking | -11 -10 -9 --------- Run | Jun Mat Mat Machines Accessed 3 | . . 3 Terminals 3 | . . 3 Fabricators . | . . . Repair Stations . | . . . Recycling Units . | . . . Scanalyzers . | . . . Garrison Access . | . . . Total Hacks 14 | . . 14 Successful 7 | . . 7 Failed 7 | . . 7 Catastrophic . | . . . Database Lockouts . | . . . Manual . | . . . Terminals 14 | . . 14 Fabricators . | . . . Repair Stations . | . . . Recycling Units . | . . . Scanalyzers . | . . . Garrison Access . | . . . Terminal Hacks 7 | . . 7 Record 1 | . . 1 Alert Level 1 | . . 1 Locate Traps 1 | . . 1 Disarm Traps 1 | . . 1 Dispatch Records 1 | . . 1 Maintenance Status 1 | . . 1 Zone Layout 1 | . . 1 Fabricator Hacks . | . . . Repair Station Hacks . | . . . Recycling Unit Hacks . | . . . Scanalyzer . | . . . Garrison Access Hacks . | . . . Unauthorized Hacks . | . . . Terminals . | . . . Fabricators . | . . . Repair Stations . | . . . Recycling Units . | . . . Scanalyzers . | . . . Garrison Access . | . . . Data Cores Recovered . | . . . Used . | . . . Hacking Detections 3 | . . 3 Full Trace Events 3 | . . 3 Feedback Events . | . . . Feedback Blocked . | . . . Robot Schematics Acquired . | . . . Robots Built . | . . . Authchips . | . . . Time . | . . . Total Robot Build Rating . | . . . Part Schematics Acquired . | . . . Parts Built . | . . . Authchips . | . . . Time . | . . . Total Part Build Rating . | . . . Parts Repaired . | . . . Time . | . . . Parts Recycled . | . . . Recycled Matter . | . . . Retrieved Matter . | . . . Retrieved Components . | . . . Parts Scanalyzed . | . . . Part Schematics Acquired . | . . . Parts Damaged . | . . . Bothacking | -11 -10 -9 ------------ Run | Jun Mat Mat Used RIF Installer . | . . . Robots Hacked 3 | . . 3 Non-combat . | . . . Combat 3 | . . 3 Robot Hacks Applied 3 | . . 3 find_shortcuts 3 | . . 3 Relay Couplers Released . | . . . Fabnet Peak Effective % . | . . . Robots Rewired . | . . . Allies Hacked . | . . . Hacks Repelled . | . . . Allies | -11 -10 -9 -------- Run | Jun Mat Mat Total Allies . | . . . Largest Group . | . . . Highest-Rated Group . | . . . Highest-Rated Ally . | . . . Total Orders . | . . . Ally Attacks . | . . . Total Damage . | . . . Kills . | . . . Allies Corrupted . | . . . Allies Melted . | . . . Intel | -11 -10 -9 ------- Run | Jun Mat Mat Robot Analysis Total 4 | . 1 3 Derelict Logs Recovered . | . . . Drone Launches . | . . . Drone Recoveries . | . . . Exploration | -11 -10 -9 ------------- Run | Jun Mat Mat Turns Passed 1788 | 10 88 1690 Spaces Moved 944 | 19 131 794 Core 95 | 19 75 1 Treads 760 | . . 760 Legs 1 | . . 1 Wheels 88 | . 56 32 Hover . | . . . Flight . | . . . Fastest Speed 50 | 50 50 50 Average Speed 141 | 50 62 156 Slowest Speed 160 | 50 80 160 Overloaded Moves . | . . . Propulsion Burnouts . | . . . Robots Hopped . | . . . Cave-ins Triggered . | . . . Exploration Rate (%) 31 | 2 25 67 Regions Visited 2 Branch Regions . Pre-discovered Areas . | . . . Known Exits Taken . | . . . Unknown Exits Taken 2 | 1 1 . Scrap Searched . | . . . Spaces Dug . | . . . Terrain Destroyed . | . . . Melee . | . . . Projectile . | . . . AOE . | . . . Terrain Rammed . | . . . Walls Destroyed . | . . . Machines Disabled . | . . . Actions | -11 -10 -9 --------- Run | Jun Mat Mat Total 1207 | 18 136 1053 Wait 151 | . . 151 Move 942 | 18 130 794 Hop . | . . . Pick Up . | . . . Fast Attach . | . . . Attach . | . . . Detach . | . . . Swap . | . . . Drop . | . . . Fire 57 | . . 57 Melee 49 | . . 49 Ram . | . . . Kick . | . . . Crush 2 | . . 2 Escape Stasis . | . . . Rewire . | . . . Trap . | . . . Miscellaneous 6 | . 6 . Route ------- -11/Junkyard -10/Materials -9/Materials (discovered 4 exits: [*Mat x3] / [*Min]) History --------- Turn | Location | Event 4 | -11/Junkyard | Discovered new exit (range 12) 11 | -11/Junkyard | Entered Materials 41 | -10/Materials | Discovered new exit (range 16) 99 | -10/Materials | Entered another Materials area 781 | -9/Materials | Core integrity fell below 50% 889 | -9/Materials | Discovered new exit (range 4) 942 | -9/Materials | Discovered new exit (range 15) 1122 | -9/Materials | Discovered new exit (range 3) 1354 | -9/Materials | Core integrity fell below 20% 1389 | -9/Materials | Discovered new exit (range 5) 1699 | -9/Materials | First assault squad dispatched 1789 | -9/Materials | Destroyed by L-31 Rogue with Katana Last Messages --------------- 01655_ R-06 Scavenger collects Heat Sink. 01658_ K-01 Serf collects debris. 01699_ ALERT: Significant disruption in Zone 5I, assault force dispatched. 01748_ C-30 ARC bursts open, deploying its payload. 01748_ B-36 Bruiser unfolds itself. 01748_ L-31 Rogue unfolds itself. 01748_ I-25 Savior unfolds itself. 01752_ B-36 Bruiser destroyed. 01752_ K-01 Serf collects debris. 01758_ Lgt. Treads destroyed. 01760_ G-47 Trooper suffers critical hit (Smash). 01760_ G-47 Trooper destroyed. 01763_ Acquired 17 Protomatter. 01783_ K-01 Serf collects debris. 01783_ Hammer destroyed. 01785_ Released control of B-36 Bruiser. 01786_ Took control of L-31 Rogue. 01786_ Extracted analysis data for L-31 Rogue. 01786_ B-36 Bruiser reactivates. 01787_ Sneak attack on I-25 Savior. Map ----- +----------------------------------------------------+ | ????????? ## ## # """ #??????# | | ???????#+######### ## # #??????# | | ???????+ ## + """ ######## | | ???????# ## # """ # | | ???????##+######## ####### % """ # | | ????????# # #???? # + | | ??????????""""" + ### # [ ####+##### | | ??????????""""" # # # #?? ???? | | ??????????""""" # + #########?? "???? | | ?????????? ?# # #????????? T"??# | | ????????? """"" ?# ### #????????? ""??# | | ??????????"""""??# #???? #???????? #?? | | ??????????"""""??# #?????????????? #?? | | ??????????? ???# #?????????????########?? | | ????????????##???# #??????????????????????? | | ?????????????????# #??+???????????????????? | | ?????????????##### ##?????????????????????? | | ?????????????# ##+#######????????????? | | ?????????????# < # #????????????? | | ?????????????# # #????????????? | | ?????????????##### # #????????????? | | ?????????????????# # #????????????# | | ?????????????????#i !#* #????????????# | | ?????????????????# %t=* #????????????# | | ?????????????????# /#%"! = #????????????# | | ?????????????????# l #"= #????????????# | | ?????????????????#l # #????????????# | | ??????????######## b ########+#???????###### | | ??????????# """ # #????????#??????? # | | ??????????# """ # #????????????????"" # | | ??????????# """ + #????????????????"" # | | ??????????# # #??????? ????????"" # | | ??????????# # ######## ???????? # | | ??????????# [ # #???????"" # | | ??????????#+###### #???????"" # | | ??????????# #????# ####### #???????"" # | | ??????????# #????# #?????# #??????? # | | ????????### ###??# #?????# #????###+##### | | ????????# #??# #?????# #????# ####" | | ????????# #??# #?????# #????# | | ????????# #??# #?????+ #????# | | ????????# #??# #?????# #????# """ | | ????????# #??# #????## ##???# """ | | ????????## ##??# #????# ##### """ | | ?????????# #???# #????# | | ?????##### #???# #????# | | ?????#!! #???# ###??# ##### | | ?????#!! ##### #??## ##???######## | | ?????#!! #???# #???????????# | | ?????#!! T ##### #???????????# | +----------------------------------------------------+ Best States ------------- Heat Dissipation 36 Energy Generation 17 Energy Capacity 215 Matter Stores 100 Matter Capacity 100 Sight Range 16 Terrain Scan Range 16 Terrain Scan Density 10 Armor Coverage 150 Resistance: EX 50 Resistance: I 25 Resistance: S 25 Evasion (%) 50 Recoil Reduction 2 Item Schematics ----------------- None Robot Schematics ------------------ None Fabricated ------------ Nothing Alien Tech Used ----------------- None Achievements -------------- None Challenges ------------ None Polymind | -11 -10 -9 ---------- Run | Jun Mat Mat Hosts 4 | . 1 3 Combat Hostiles 3 | . . 3 Allies . | . . . Unique Host Classes 4 | . 1 3 Average Host Suspicion 94 | . 8 97 Unsuspicious Activity 43 | . 32 11 Returns to Shadow . | . . . Fuzzy Dispatches . | . . . Protomatter Created 120 | . . 120 Used 80 | . 5 75 Decayed 23 | . . 23 Highest Spend 29 | . 5 29 Top 5 Hosts by Kills: B-36 Bruiser (-9/Materials: 13) Y-45 Defender (-9/Materials: 12) Game ------ Seed SystemStormFemtoactuators Manual? 0 Play Time 00:10:02 Cumulative 104.5 hours Start 2023.10.17 @ 15:45:53 End 2023.10.17 @ 15:52:43 Sessions 1 Manual Loads 0 Difficulty Rogue Special Mode Winter2022/Polymind Game No. 113 Rogue 77 Adventurer 36 Explorer 0 Win Type - Total 7 Types 2/0/5/0/0/0/0/0/0 Lore% 52 Gallery% 72 Achievement% 61 Wizard Run 0 Options --------- ASCII 0 Keyboard 0 Movement Mouse Keybinds 0 Fullscreen 1 Font 18/SmallcapsGlow Map View 76x50 Tactical HUD 1 Map Filters NONE Filters NONE Steam 1 RUN: 0ed5d6bb-b021-4b19-b6c9-2b7c63d1f2c3